bitfinex/quotes_SOLUSD_20230120
["timestamp","ask_amount","ask_price","bid_price","bid_amount"]
[1674255516557,20.0,25.247,25.222,43.75576951]
[1674255516765,20.0,25.247,25.221,29.74]
[1674255517094,20.0,25.247,25.222,20.0]
[1674255517301,20.0,25.247,25.219,20.0]
[1674255517515,20.0,25.247,25.22,22.79471]
[1674255517843,20.0,25.247,25.221,20.0]
[1674255518151,20.0,25.247,25.222,20.96]
[1674255518352,20.0,25.247,25.223,20.0]
[1674255518552,20.0,25.247,25.224,20.96]
[1674255518763,20.0,25.247,25.225,20.0]
[1674255518978,20.0,25.247,25.226,0.96]
[1674255519189,20.0,25.247,25.226,17.96]
[1674255519733,20.0,25.247,25.227,20.0]
[1674255519927,20.0,25.25,25.228,0.96]
[1674255520133,20.0,25.25,25.229,2.79371]
[1674255520342,20.0,25.25,25.23,0.96]
[1674255520565,20.0,25.25,25.23,17.96]
[1674255521082,20.0,25.25,25.231,20.0]
[1674255521411,20.0,25.25,25.232,20.75338]
[1674255522239,29.71,25.249,25.232,2.79338]
[1674255522447,53.46576951,25.249,25.216,20.0]
[1674255522657,20.0,25.247,25.217,2.79504]
[1674255522867,29.71,25.246,25.217,2.79504]
[1674255523077,20.0,25.245,25.217,2.79504]
[1674255523288,147.3438,25.244,25.217,2.79504]
[1674255523710,20.0,25.243,25.217,2.79504]
[1674255523910,20.0,25.241,25.217,2.79504]
[1674255525392,20.0,25.241,25.218,0.96]
[1674255525857,20.0,25.241,25.217,2.79504]
[1674255526544,29.72,25.24,25.217,2.79504]
[1674255526764,20.0,25.241,25.217,2.79504]
[1674255527085,20.0,25.241,25.217,22.79504]
[1674255527286,20.0,25.241,25.218,17.96]
[1674255527626,20.0,25.241,25.219,2.79482]
[1674255527808,20.0,25.241,25.22,0.96]
[1674255528135,20.0,25.241,25.22,24.71576951]
[1674255528329,20.0,25.241,25.221,40.75576951]
[1674255528539,20.0,25.241,25.222,17.96]
[1674255529399,20.0,25.241,25.222,41.71576951]
[1674255530331,20.0,25.241,25.222,17.96]
[1674255530758,20.0,25.241,25.222,41.71576951]
[1674255534446,20.0,25.241,25.223,2.79437]
[1674255534664,20.0,25.241,25.224,0.96]
[1674255538233,20.0,25.241,25.224,17.96]
[1674255538748,20.0,25.241,25.224,0.96]
[1674255539611,20.0,25.241,25.223,2.79437]
[1674255540970,20.0,25.241,25.224,0.96]
[1674255541294,20.0,25.241,25.168,70.02143162]
[1674255541479,20.0,25.241,25.214,2.79537]
[1674255542849,20.0,25.239,25.214,2.79537]
[1674255543176,66.72,25.238,25.202,20.0]
[1674255543398,66.72,25.238,25.203,2.79659]
[1674255543918,20.0,25.237,25.203,2.79659]
[1674255544111,46.73,25.236,25.203,2.79659]
[1674255544638,94.77450069,25.236,25.203,2.79659]
[1674255544848,20.0,25.234,25.203,2.79659]
[1674255545050,66.73,25.233,25.203,2.79659]
[1674255545260,116.50595284,25.233,25.195,20.0]
[1674255545471,194.63456654,25.232,25.196,2.79737]
[1674255545791,20.0,25.23,25.196,2.79737]
[1674255545995,66.73,25.229,25.196,2.79737]
[1674255546212,116.50595284,25.229,25.196,2.79737]
[1674255546545,20.96,25.228,25.195,20.0]
[1674255546859,20.0,25.226,25.195,20.0]
[1674255547069,20.0,25.226,25.189,49.78]
[1674255547070,47.7,25.225,25.194,20.0]
[1674255547261,20.0,25.224,25.192,20.0]
[1674255547474,46.74,25.223,25.189,20.0]
[1674255547681,46.74,25.223,25.189,22.79815]
[1674255548007,20.0,25.222,25.19,20.0]
[1674255548225,46.74,25.221,25.191,20.0]
[1674255548533,20.0,25.22,25.192,20.0]
[1674255548755,29.75,25.219,25.192,22.79781]
[1674255548961,29.75,25.219,25.193,2.7977]
[1674255549357,20.0,25.218,25.194,0.96]
[1674255549571,20.0,25.218,25.195,20.0]
[1674255549789,20.0,25.218,25.196,17.96]
[1674255549998,20.0,25.218,25.197,20.0]
[1674255550196,20.0,25.218,25.198,17.96]
[1674255550408,20.0,25.218,25.199,20.0]
[1674255550727,110.973,25.22,25.2,17.96]
[1674255550935,110.973,25.22,25.201,20.0]
[1674255551145,29.75,25.219,25.202,17.96]
[1674255551458,20.0,25.218,25.202,17.96]
[1674255551884,20.0,25.218,25.202,41.71576951]
[1674255553450,20.0,25.218,25.203,20.0]
[1674255553662,20.0,25.218,25.204,17.96]
[1674255554826,20.0,25.218,25.204,0.96]
[1674255558096,20.0,25.218,25.202,23.75576951]
[1674255558289,29.75,25.217,25.194,20.0]
[1674255558502,20.0,25.216,25.19,23.75576951]
[1674255558708,20.0,25.216,25.191,20.0]
[1674255558935,20.0,25.216,25.19,23.75576951]
[1674255559127,29.75,25.215,25.183,29.79]
[1674255559342,20.0,25.214,25.187,23.75576951]
[1674255559548,20.0,25.212,25.187,23.75576951]
[1674255559978,136.7664,25.212,25.187,23.75576951]
[1674255560302,20.0,25.211,25.187,23.75576951]
[1674255561144,20.0,25.211,25.188,17.0]
[1674255561357,20.0,25.211,25.184,2.7987]
[1674255561576,20.0,25.211,25.188,23.75576951]
[1674255562523,20.0,25.211,25.189,17.96]
[1674255563036,20.0,25.211,25.19,23.75576951]
[1674255563254,20.0,25.211,25.192,20.0]
[1674255563463,20.0,25.211,25.184,2.7987]
[1674255563668,20.0,25.211,25.184,20.0]
[1674255563880,20.0,25.209,25.184,20.0]
[1674255564277,20.0,25.207,25.185,20.0]
[1674255565234,20.0,25.207,25.186,17.96]
[1674255565455,116.1383,25.208,25.186,17.96]
[1674255565665,116.1383,25.208,25.187,20.0]
[1674255565859,116.1383,25.208,25.188,17.96]
[1674255566409,116.1383,25.208,25.189,20.0]
[1674255566613,116.1383,25.208,25.19,17.96]
[1674255566829,116.1383,25.208,25.191,20.0]
[1674255567458,20.0,25.207,25.189,20.0]
[1674255567983,116.1383,25.208,25.189,20.0]
[1674255568713,116.1383,25.208,25.19,17.96]
[1674255568925,116.1383,25.208,25.191,20.0]
[1674255569137,116.1383,25.208,25.192,17.96]
[1674255569545,20.0,25.207,25.192,17.96]
[1674255569891,116.1383,25.208,25.192,17.96]
[1674255571550,116.1383,25.208,25.193,20.0]
[1674255571763,116.1383,25.208,25.194,17.96]
[1674255573342,20.0,25.207,25.194,17.96]
[1674255574930,20.0,25.207,25.194,0.96]
[1674255575128,116.1383,25.208,25.194,0.96]
[1674255575449,20.0,25.207,25.194,0.96]
[1674255575633,116.1383,25.208,25.194,0.96]
[1674255586481,116.1383,25.208,25.194,3.75759]
[1674255587010,116.1383,25.208,25.195,2.79748]
[1674255587210,116.1383,25.208,25.196,0.96]
[1674255587626,116.1383,25.208,25.197,2.79726]
[1674255588061,116.1383,25.208,25.198,0.96]
[1674255588258,116.1383,25.208,25.199,2.79704]
[1674255588474,116.1383,25.208,25.2,0.96]
[1674255588682,116.1383,25.208,25.201,32.56681]
[1674255588998,116.7664,25.212,25.203,20.0]
[1674255589212,116.7664,25.212,25.204,2.79648]
[1674255589549,116.7664,25.212,25.205,20.96]
[1674255589733,116.7664,25.212,25.206,39.79626]
[1674255589942,116.7664,25.212,25.207,3.75615]
[1674255590153,116.7664,25.212,25.208,2.79604]
[1674255590372,113.5733,25.223,25.209,0.96]
[1674255590579,113.5733,25.223,25.21,2.79582]
[1674255590809,113.5733,25.223,25.211,0.96]
[1674255591002,113.5733,25.223,25.212,2.79559]
[1674255591206,113.5733,25.223,25.213,0.96]
[1674255591624,116.1793,25.224,25.213,0.96]
[1674255591950,20.0,25.223,25.213,3.75548]
[1674255592166,20.0,25.223,25.213,20.75548]
[1674255592786,20.0,25.223,25.213,2.79548]
[1674255593203,20.0,25.223,25.201,20.0]
[1674255593538,20.0,25.223,25.205,23.75576951]
[1674255593846,20.0,25.223,25.206,40.0]
[1674255594381,20.0,25.223,25.207,41.71576951]
[1674255594579,20.0,25.223,25.207,44.51191951]
[1674255594792,20.0,25.223,25.207,20.75615]
[1674255595107,20.0,25.223,25.207,44.51191951]
[1674255595313,20.0,25.223,25.207,20.75615]
[1674255595531,20.0,25.223,25.208,2.79604]
[1674255595723,20.0,25.223,25.209,0.96]
[1674255595929,20.0,25.223,25.209,3.75593]
[1674255596140,20.0,25.223,25.209,20.75593]
[1674255596578,20.0,25.223,25.21,17.0]
[1674255596782,20.0,25.223,25.211,0.96]
[1674255596992,20.0,25.223,25.21,17.0]
[1674255597201,20.0,25.223,25.211,0.96]
[1674255598578,116.1793,25.224,25.211,0.96]
[1674255598890,116.1793,25.224,25.212,2.79559]
[1674255599098,116.1793,25.224,25.213,20.96]
[1674255599313,115.6793,25.224,25.214,39.79537]
[1674255599523,115.6793,25.224,25.215,3.75526]
[1674255599838,115.6793,25.224,25.216,2.79515]
[1674255600030,115.6793,25.224,25.217,0.96]
[1674255600242,115.6793,25.224,25.217,20.96]
[1674255600451,109.8868,25.231,25.218,159.15576951]
[1674255600662,109.8868,25.231,25.22,118.4]
[1674255600879,109.8868,25.231,25.221,69.5346]
[1674255601082,109.8868,25.231,25.222,23.75449]
[1674255601414,109.8868,25.231,25.223,39.79437]
[1674255601625,20.0,25.247,25.224,3.75426]
[1674255601815,119.2864,25.246,25.225,2.79415]
[1674255602153,20.0,25.245,25.226,20.96]
[1674255602355,20.0,25.245,25.227,19.79393]
[1674255602567,20.0,25.245,25.228,3.75382]
[1674255602759,20.0,25.245,25.229,2.79371]
[1674255602972,20.0,25.245,25.23,0.96]
[1674255603190,20.0,25.245,25.231,2.79349]
[1674255603399,20.0,25.245,25.232,0.96]
[1674255603711,119.2864,25.246,25.233,2.79327]
[1674255603924,119.2864,25.246,25.234,0.96]
[1674255604134,119.2864,25.246,25.235,2.79305]
[1674255604344,119.2864,25.246,25.236,0.96]
[1674255604558,119.2864,25.246,25.236,17.96]
[1674255604769,119.2864,25.246,25.237,22.79282]
[1674255605098,119.2864,25.246,25.239,20.0]
[1674255605409,20.0,25.267,25.241,20.0]
[1674255605620,112.815,25.266,25.242,40.75227]
[1674255605813,112.815,25.266,25.243,2.79216]
[1674255606143,112.815,25.266,25.244,0.96]
[1674255606144,20.0,25.265,25.244,0.96]
[1674255606332,20.0,25.265,25.244,100.3866591]
[1674255606654,20.0,25.265,25.245,83.39037861]
[1674255606859,20.0,25.265,25.247,20.0]
[1674255607070,20.0,25.265,25.248,20.75161]
[1674255607281,20.0,25.265,25.249,22.7915]
[1674255607486,20.0,25.265,25.25,20.75139]
[1674255607705,20.0,25.265,25.251,2.79128]
[1674255608449,20.0,25.265,25.233,29.73]
[1674255608450,20.0,25.265,25.234,20.0]
[1674255608669,20.0,25.265,25.248,23.75576951]
[1674255609404,20.0,25.265,25.249,17.0]
[1674255609802,20.0,25.265,25.25,23.75576951]
[1674255610131,20.0,25.265,25.251,17.0]
[1674255610345,20.0,25.268,25.252,0.96]
[1674255610537,20.0,25.269,25.252,20.96]
[1674255610747,20.0,25.269,25.253,17.0]
[1674255610959,20.0,25.273,25.254,20.0]
[1674255611169,20.0,25.273,25.256,20.0]
[1674255611387,20.0,25.28,25.256,20.0]
[1674255611589,20.0,25.28,25.257,40.75576951]
[1674255612020,18.5,25.283,25.258,46.54626951]
[1674255612243,18.5,25.283,25.259,39.79039]
[1674255612432,18.5,25.283,25.26,22.79028]
[1674255612767,18.0,25.283,25.261,19.79017]
[1674255612956,18.0,25.283,25.263,20.0]
[1674255613166,18.0,25.283,25.264,39.78984]
[1674255613499,20.0,25.288,25.264,113.50241194]
[1674255613691,20.0,25.288,25.265,76.50230194]
[1674255614022,20.0,25.288,25.264,37.0]
[1674255614023,20.0,25.288,25.266,133.50219194]
[1674255614231,20.0,25.288,25.267,40.0]
[1674255614421,20.0,25.289,25.268,17.0]
[1674255614632,29.63,25.314,25.269,20.0]
[1674255614866,29.63,25.314,25.27,19.78918]
[1674255615097,29.63,25.314,25.271,52.46907]
[1674255615273,20.0,25.313,25.272,22.78896]
[1674255615599,29.64,25.312,25.273,69.46885]
[1674255615796,20.0,25.313,25.274,2.78874]
[1674255616008,42.768053,25.29,25.275,49.68]
[1674255616335,42.768053,25.29,25.276,59.78851]
[1674255616536,42.768053,25.29,25.277,32.4684]
[1674255616747,29.62,25.324,25.279,118.4]
[1674255617066,29.62,25.324,25.278,39.78829]
[1674255617067,20.0,25.323,25.281,20.0]
[1674255617279,20.0,25.323,25.282,52.45785]
[1674255617470,20.0,25.323,25.283,138.18774]
[1674255617680,20.0,25.323,25.285,118.4]
[1674255617891,20.0,25.323,25.289,118.4]
[1674255618108,20.0,25.323,25.291,118.4]
[1674255618316,29.61,25.337,25.292,52.44675]
[1674255618534,29.61,25.337,25.293,19.78664]
[1674255618886,29.61,25.337,25.294,170.84653]
[1674255619081,20.0,25.34,25.297,118.4]
[1674255619255,29.6,25.339,25.298,150.83609]
[1674255619466,20.0,25.34,25.3,118.4]
[1674255619690,120.0,25.342,25.301,187.83576]
[1674255620009,120.0,25.334,25.303,118.4]
[1674255620228,29.59,25.349,25.305,118.4]
[1674255620435,29.59,25.349,25.306,187.82521]
[1674255620625,20.0,25.35,25.307,2.7851]
[1674255620835,29.59,25.349,25.308,29.64]
[1674255621168,20.0,25.348,25.31,20.0]
[1674255621369,120.0,25.358,25.31,20.0]
[1674255621370,0.008053,25.328,25.311,32.42466]
[1674255621574,120.0,25.373,25.33,86.536106]
[1674255621806,120.0,25.373,25.313,20.0]
[1674255621807,120.0,25.373,25.331,66.61]
[1674255621994,20.0,25.373,25.333,20.0]
[1674255622205,20.0,25.373,25.334,66.61]
[1674255622535,20.0,25.373,25.335,22.78202]
[1674255622755,20.0,25.373,25.336,69.39191]
[1674255622969,20.0,25.364,25.338,20.0]
[1674255623168,20.0,25.364,25.339,69.38158]
[1674255623370,20.0,25.364,25.34,2.78147]
[1674255623811,20.0,25.364,25.34,26.53723951]
[1674255624132,20.0,25.364,25.341,60.75576951]
[1674255624335,20.0,25.364,25.341,26.53712951]
[1674255624652,20.0,25.364,25.341,23.75576951]
[1674255624857,29.58,25.363,25.342,23.75576951]
[1674255625063,20.0,25.362,25.342,23.75576951]
[1674255625477,20.0,25.362,25.342,74.34165539]
[1674255625698,20.0,25.362,25.342,123.4106424]
[1674255626021,41.268053,25.365,25.344,20.0]
[1674255626213,41.268053,25.365,25.345,39.78092]
[1674255626429,41.268053,25.365,25.346,2.78081]
[1674255626636,41.268053,25.365,25.346,97.12246539]
[1674255626848,41.268053,25.365,25.347,87.58588588]
[1674255627066,20.0,25.364,25.348,22.78059]
[1674255627259,20.0,25.364,25.348,46.53635951]
[1674255627469,20.0,25.364,25.349,23.75576951]
[1674255628329,41.268053,25.365,25.349,23.75576951]
[1674255628537,41.268053,25.365,25.346,20.0]
[1674255628538,41.268053,25.365,25.351,20.0]
[1674255628750,41.268053,25.365,25.352,22.78016]
[1674255628959,41.268053,25.365,25.353,22.78005]
[1674255629151,41.268053,25.365,25.354,39.77994]
[1674255629361,41.268053,25.365,25.354,63.53570951]
[1674255629588,41.268053,25.365,25.354,97.12159539]
[1674255629802,41.268053,25.365,25.355,23.75576951]
[1674255630008,41.268053,25.365,25.356,20.0]
[1674255630217,41.268053,25.365,25.356,54.53176035]
[1674255630434,41.268053,25.365,25.336,29.61]
[1674255630628,41.268053,25.365,25.357,32.42044163]
[1674255630964,16.268053,25.365,25.358,46.53526951]
[1674255631157,16.268053,25.365,25.359,2.77939]
[1674255631364,15.768053,25.365,25.36,20.0]
[1674255631571,15.768053,25.365,25.361,22.77917]
[1674255631794,15.768053,25.365,25.361,46.53493951]
[1674255631993,15.768053,25.365,25.362,37.0]
[1674255632202,15.768053,25.365,25.363,20.0]
[1674255632546,15.768053,25.365,25.363,43.75576951]
[1674255632726,15.768053,25.365,25.364,23.75576951]
[1674255633140,14.768053,25.365,25.353,105.82198623]
[1674255633354,14.768053,25.365,25.353,23.75576951]
[1674255633788,14.768053,25.365,25.354,22.77994]
[1674255634018,14.768053,25.365,25.346,20.0]
[1674255634212,14.768053,25.365,25.349,23.75576951]
[1674255634427,14.768053,25.365,25.34,29.6]
[1674255634428,20.0,25.364,25.341,20.0]
[1674255634639,20.0,25.364,25.342,29.6]
[1674255634859,20.0,25.364,25.343,20.0]
[1674255635168,20.0,25.364,25.343,43.75576951]
[1674255635369,20.0,25.364,25.344,23.75576951]
[1674255635786,14.768053,25.365,25.346,20.0]
[1674255636014,14.768053,25.365,25.347,20.0]
[1674255636225,14.768053,25.365,25.348,20.0]
[1674255636436,14.768053,25.365,25.349,20.0]
[1674255636650,14.768053,25.365,25.35,20.0]
[1674255637063,14.768053,25.365,25.343,20.0]
[1674255637276,49.58,25.364,25.341,23.75576951]
[1674255637486,49.58,25.364,25.323,20.0]
[1674255637803,20.0,25.363,25.335,23.75576951]
[1674255638018,29.58,25.362,25.335,23.75576951]
[1674255638226,20.0,25.361,25.335,23.75576951]
[1674255638418,29.58,25.36,25.336,20.0]
[1674255638840,20.0,25.359,25.329,23.75576951]
[1674255639070,29.58,25.358,25.33,20.0]
[1674255639270,29.58,25.358,25.328,20.0]
[1674255639488,20.0,25.357,25.328,20.0]
[1674255639684,29.58,25.356,25.329,106.45762839]
[1674255639891,20.0,25.355,25.329,7.9011521]
[1674255640100,172.76675702,25.325,25.289,111.0279]
[1674255640309,52.3894,25.324,25.289,111.0279]
[1674255640633,2.7694,25.323,25.289,111.0279]
[1674255640853,29.62,25.322,25.289,111.0279]
[1674255641169,40.0,25.321,25.29,20.0]
[1674255641365,29.63,25.32,25.29,20.0]
[1674255641570,29.63,25.32,25.291,23.75576951]
[1674255642200,29.63,25.32,25.292,20.0]
[1674255642835,20.0,25.319,25.293,23.75576951]
[1674255643044,29.63,25.318,25.292,20.0]
[1674255643463,29.63,25.318,25.29,20.0]
[1674255643679,20.0,25.316,25.29,20.0]
[1674255643897,49.63,25.315,25.29,20.0]
[1674255644324,20.0,25.314,25.29,20.0]
[1674255644520,66.63,25.313,25.289,111.0279]
[1674255644722,20.0,25.312,25.289,111.0279]
[1674255644933,66.64,25.311,25.289,111.0279]
[1674255645580,20.0,25.31,25.289,111.0279]
[1674255645790,29.64,25.309,25.289,111.0279]
[1674255646225,20.0,25.308,25.289,111.0279]
[1674255646642,140.56846654,25.307,25.289,111.0279]
[1674255646838,20.0,25.306,25.289,111.0279]
[1674255647157,49.64,25.305,25.289,111.0279]
[1674255647574,20.0,25.304,25.29,20.0]
[1674255647790,29.64,25.305,25.29,20.0]
[1674255648105,29.64,25.311,25.291,23.75576951]
[1674255648297,29.63,25.315,25.291,23.75576951]
[1674255648513,29.63,25.316,25.3,2.0]
[1674255648743,118.4,25.315,25.289,111.0279]
[1674255648932,2.0,25.297,25.277,28.5]
[1674255649145,168.62255212,25.314,25.277,28.5]
[1674255649146,52.4194,25.296,25.277,28.5]
[1674255649371,20.0,25.294,25.24,29.72]
[1674255649683,20.0,25.294,25.206,20.0]
[1674255649684,20.0,25.292,25.208,20.0]
[1674255649889,32.4294,25.291,25.209,29.76]
[1674255650106,2.7694,25.289,25.209,29.76]
[1674255650297,29.66,25.288,25.209,29.76]
[1674255650506,39.7694,25.287,25.209,29.76]
[1674255650745,20.0,25.285,25.21,20.0]
[1674255650924,187.8394,25.284,25.211,29.75]
[1674255651139,2.7694,25.283,25.211,29.75]
[1674255651347,29.67,25.282,25.211,29.75]
[1674255651562,19.7694,25.281,25.211,29.75]
[1674255651772,30.0252,25.248,25.21,20.0]
[1674255651996,52.4794,25.247,25.239,0.008053]
[1674255652186,2.7694,25.246,25.239,0.008053]
[1674255652400,20.0,25.244,25.239,0.008053]
[1674255652725,114.21799058,25.243,25.239,0.008053]
[1674255652923,22.7694,25.242,25.239,0.008053]
[1674255653134,69.4894,25.241,25.239,0.008053]
[1674255653359,22.7694,25.24,25.239,0.008053]
[1674255653564,89.4894,25.24,25.239,0.008053]
[1674255653777,134.21799058,25.24,25.239,0.008053]
[1674255654104,89.4894,25.24,25.239,0.008053]
[1674255654725,69.72,25.24,25.206,42.12158249]
[1674255654941,20.008053,25.21,25.172,20.0]
[1674255655156,32.5294,25.209,25.201,0.008053]
[1674255655355,22.7694,25.208,25.201,0.008053]
[1674255655560,22.7694,25.208,25.14,20.0]
[1674255655561,20.0,25.206,25.14,20.0]
[1674255655777,52.5294,25.205,25.141,29.84]
[1674255655976,2.7694,25.204,25.163,39.268053]
[1674255656186,29.76,25.203,25.163,39.268053]
[1674255656408,20.0,25.201,25.163,39.268053]
[1674255656614,20.0,25.199,25.164,20.0]
[1674255656823,52.5394,25.198,25.163,39.268053]
[1674255657043,19.7694,25.197,25.163,39.268053]
[1674255657249,52.5394,25.196,25.163,39.268053]
[1674255657466,19.7694,25.195,25.163,39.268053]
[1674255657665,20.0,25.193,25.163,39.268053]
[1674255657880,69.5494,25.192,25.163,39.268053]
[1674255658198,22.7694,25.191,25.165,20.0]
[1674255658513,20.0,25.189,25.165,29.81]
[1674255658725,22.7694,25.188,25.158,23.75576951]
[1674255658917,19.7694,25.187,25.114,49.87]
[1674255659131,20.0,25.184,25.115,15.5]
[1674255659338,2.7694,25.182,25.116,29.87]
[1674255659577,20.0,25.18,25.117,20.0]
[1674255659763,2.7694,25.178,25.118,29.86]
[1674255659972,20.0,25.176,25.119,20.0]
[1674255660190,2.7694,25.174,25.12,29.86]
[1674255660389,29.8,25.173,25.12,53.61576951]
[1674255660594,2.7694,25.172,25.121,43.75576951]
[1674255660828,2.7694,25.172,25.122,29.86]
[1674255661027,2.7694,25.172,25.122,53.61576951]
[1674255661238,2.7694,25.172,25.123,43.75576951]
[1674255661462,2.7694,25.172,25.125,20.0]
[1674255661672,2.7694,25.172,25.126,66.86]
[1674255661881,2.7694,25.172,25.127,20.0]
[1674255662080,2.7694,25.172,25.128,49.85]
[1674255662283,2.7694,25.172,25.128,73.60576951]
[1674255662499,2.7694,25.172,25.129,20.0]
[1674255662720,2.7694,25.172,25.13,49.85]
[1674255662935,2.7694,25.172,25.131,20.0]
[1674255663136,2.7694,25.172,25.132,49.85]
[1674255663357,2.7694,25.172,25.133,20.0]
[1674255663560,20.0,25.182,25.134,49.85]
[1674255663774,22.7694,25.181,25.135,20.0]
[1674255664092,2.7694,25.18,25.136,66.84]
[1674255664290,2.7694,25.18,25.137,20.0]
[1674255664619,2.7694,25.18,25.139,20.0]
[1674255664833,2.7694,25.18,25.141,20.0]
[1674255665144,20.0,25.179,25.143,20.0]
[1674255665451,2.7694,25.178,25.145,20.0]
[1674255665665,19.7694,25.178,25.146,49.83]
[1674255665978,2.7694,25.178,25.146,49.83]
[1674255666301,2.7694,25.178,25.147,20.0]
[1674255666610,2.7694,25.178,25.149,20.0]
[1674255666822,2.7694,25.178,25.151,20.0]
[1674255667139,114.1483,25.188,25.152,66.82]
[1674255667328,2.7694,25.182,25.153,20.0]
[1674255667538,2.7694,25.182,25.155,20.0]
[1674255667751,2.7694,25.182,25.156,49.82]
[1674255668085,2.7694,25.182,25.157,20.0]
[1674255668273,20.0,25.199,25.158,49.82]
[1674255668486,2.7694,25.196,25.159,20.0]
[1674255668693,2.7694,25.196,25.16,49.81]
[1674255669124,2.7694,25.196,25.162,20.0]
[1674255669450,2.7694,25.196,25.164,20.0]
[1674255669638,2.7694,25.196,25.165,49.81]
[1674255669848,2.7694,25.196,25.166,17.0]
[1674255670396,2.7694,25.196,25.167,23.75576951]
[1674255670598,2.7694,25.196,25.168,17.0]
[1674255670914,2.7694,25.196,25.169,29.8]
[1674255671105,2.7694,25.196,25.17,17.96]
[1674255671313,2.7694,25.196,25.171,29.8]
[1674255671529,2.7694,25.196,25.172,17.96]
[1674255671754,2.7694,25.196,25.173,49.8]
[1674255671960,29.73,25.235,25.173,73.55576951]
[1674255672178,2.7694,25.213,25.174,17.96]
[1674255672391,20.0,25.235,25.175,52.5997]
[1674255672579,5.3e-05,25.214,25.176,20.75959]
[1674255672796,119.7148,25.272,25.177,52.58948]
[1674255673020,29.68,25.271,25.179,2.79926]
[1674255673208,119.7148,25.272,25.18,148.19]
[1674255673426,29.68,25.271,25.182,121.19892]
[1674255673754,119.7148,25.272,25.184,121.1987]
[1674255674072,20.0,25.259,25.186,121.19848]
[1674255674383,20.0,25.259,25.188,121.19826]
[1674255674700,20.0,25.278,25.19,121.19804]
[1674255674891,20.0,25.278,25.192,121.19781]
[1674255675097,119.32,25.28,25.208,118.4]
[1674255675327,119.32,25.28,25.193,67.74]
[1674255675328,119.32,25.28,25.21,121.19582]
[1674255675561,119.32,25.28,25.212,121.19559]
[1674255675772,20.0,25.279,25.214,118.4]
[1674255675979,20.0,25.279,25.213,53.50548]
[1674255675980,20.0,25.279,25.217,39.54]
[1674255676295,119.32,25.28,25.22,118.4]
[1674255676494,20.0,25.279,25.222,118.4]
[1674255676704,399.2,25.33,25.285,53.96999999]
[1674255676914,39.62255836,25.417,25.285,53.96999999]
[1674255676915,120.0,25.352,25.286,52.45741]
[1674255677130,117.1682,25.364,25.287,2.7873]
[1674255677331,0.00499167,25.313,25.288,29.66]
[1674255677535,0.00499167,25.313,25.289,59.78708]